fUSD/lending_fUSD_20240319
["ID","MTS","AMOUNT","RATE_DAILY","PERIOD"]
[319583414,1710882643092,-729.1,0.00030136,2]
[319583416,1710882643101,-654.02,0.00030136,2]
[319583417,1710882643111,-500.0,0.00030136,2]
[319583418,1710882643122,-151.0,0.00030136,7]
[319583419,1710882643132,-151.0,0.00030136,7]
[319583420,1710882643142,-2793.54,0.00030136,2]
[319583421,1710882643151,-500.0,0.00030136,2]
[319583422,1710882643161,-500.0,0.00030136,2]
[319583423,1710882643171,-500.0,0.00030136,2]
[319583424,1710882643181,-1214.08,0.00030136,2]
[319583425,1710882643191,-1268.94,0.00030136,2]
[319583427,1710882643200,-2526.68,0.00030136,2]
[319583428,1710882643210,-500.0,0.00030136,2]
[319583429,1710882643219,-500.0,0.00030136,2]
[319583430,1710882643229,-500.0,0.00030136,2]
[319583431,1710882643238,-547.38,0.00030136,2]
[319583432,1710882643248,-2457.88,0.00030136,2]
[319583433,1710882643257,-500.0,0.00030136,2]
[319583434,1710882643267,-959.31,0.00030136,2]
[319583435,1710882643276,-500.0,0.00030136,2]
[319583436,1710882643286,-3760.19,0.00030136,2]
[319583437,1710882643296,-500.0,0.00030136,2]
[319583440,1710882643306,-715.5,0.00030136,2]
[319583442,1710882643316,-500.0,0.00030136,2]
[319583444,1710882643325,-680.68,0.00030136,2]
[319583446,1710882643336,-360.8291512,0.00030136,2]
[319583448,1710882643346,-500.0,0.00030136,2]
[319583449,1710882643355,-614.5,0.00030136,2]
[319583451,1710882643365,-853.3,0.00030136,2]
[319583452,1710882643374,-500.0,0.00030136,2]
[319583453,1710882643383,-500.0,0.00030136,2]
[319583454,1710882643393,-500.0,0.00030136,2]
[319583455,1710882643402,-3066.34,0.00030136,2]
[319583456,1710882643411,-2424.63,0.00030136,2]
[319583457,1710882643421,-500.0,0.00030136,2]
[319583458,1710882643430,-1168.84,0.00030136,2]
[319583459,1710882643439,-500.0,0.00030136,2]
[319583460,1710882643449,-500.0,0.00030136,2]
[319583461,1710882643457,-1164.43,0.00030136,2]
[319583462,1710882643467,-608.59,0.00030136,2]
[319583463,1710882643476,-629.29,0.00030136,2]
[319583464,1710882643485,-500.0,0.00030136,2]
[319583465,1710882643494,-508.61442935,0.00030136,2]
[319583466,1710882643503,-500.0,0.00030136,2]
[319583467,1710882643513,-2223.86,0.00030136,2]
[319583468,1710882643522,-2677.58,0.00030136,2]
[319583469,1710882643532,-697.41,0.00030136,2]
[319583470,1710882643542,-2297.06,0.00030136,2]
[319583471,1710882643551,-3041.67,0.00030136,2]
[319583472,1710882643560,-951.64,0.00030136,2]
[319583473,1710882643569,-500.0,0.00030136,2]
[319583474,1710882643579,-1633.83,0.00030136,2]
[319583475,1710882643589,-1331.88,0.00030136,2]
[319583477,1710882643598,-1231.68,0.00030136,2]
[319583479,1710882643607,-500.0,0.00030136,2]
[319583480,1710882643617,-195.235218,0.00030136,7]
[319583481,1710882643626,-663.8,0.00030136,2]
[319583482,1710882643636,-3495.14,0.00030136,2]
[319583483,1710882643645,-158.80977322,0.00030136,2]
[319583484,1710882643654,-500.0,0.00030136,2]
[319583485,1710882643665,-1082.74,0.00030136,2]
[319583486,1710882643674,-2798.04,0.00030136,2]
[319583487,1710882643685,-500.0,0.00030136,2]
[319583488,1710882643696,-1200.05,0.00030136,2]
[319583489,1710882643707,-500.0,0.00030136,2]
[319583490,1710882643718,-5931.96,0.00030136,2]
[319583491,1710882643727,-646.65,0.00030136,2]
[319583492,1710882643737,-815.61,0.00030136,2]
[319583493,1710882643747,-500.0,0.00030136,2]
[319583494,1710882643761,-1045.65,0.00030136,2]
[319583495,1710882643772,-500.0,0.00030136,2]
[319583496,1710882643781,-524.57,0.00030136,2]
[319583497,1710882643792,-1792.06,0.00030136,2]
[319583498,1710882643802,-1398.03,0.00030136,2]
[319583499,1710882643812,-500.0,0.00030136,2]
[319583500,1710882643822,-500.0,0.00030136,2]
[319583501,1710882643831,-1131.1,0.00030136,2]
[319583502,1710882643842,-500.0,0.00030136,2]
[319583503,1710882643851,-520.61108673,0.00030136,2]
[319583504,1710882643860,-1369.83,0.00030136,2]
[319583505,1710882643870,-721.08,0.00030136,2]
[319583506,1710882643879,-500.0,0.00030136,2]
[319583507,1710882643888,-922.35,0.00030136,2]
[319583508,1710882643897,-500.0,0.00030136,2]
[319583509,1710882643907,-883.57,0.00030136,2]
[319583510,1710882643917,-500.0,0.00030136,2]
[319583511,1710882643926,-1104.62,0.00030136,2]
[319583512,1710882643936,-1120.77,0.00030136,2]
[319583513,1710882643945,-500.0,0.00030136,2]
[319583514,1710882643954,-1261.46,0.00030136,2]
[319583515,1710882643964,-1731.77,0.00030136,2]
[319583516,1710882643973,-500.0,0.00030136,2]
[319583517,1710882643983,-500.0,0.00030136,2]
[319583518,1710882643992,-500.0,0.00030136,2]
[319583519,1710882644001,-1179.98,0.00030136,2]
[319583520,1710882644010,-500.0,0.00030136,2]
[319583521,1710882644020,-1543.68,0.00030136,2]
[319583522,1710882644030,-500.0,0.00030136,2]
[319583523,1710882644040,-500.0,0.00030136,2]
[319583524,1710882644049,-2875.55,0.00030136,2]
[319583525,1710882644059,-500.0,0.00030136,2]
[319583526,1710882644068,-151.0,0.00030136,7]
[319583527,1710882644077,-151.0,0.00030136,7]
[319583528,1710882644091,-151.0,0.00030136,7]
[319583529,1710882644101,-500.0,0.00030136,2]
[319583530,1710882644113,-815.08,0.00030136,2]
[319583531,1710882644122,-500.0,0.00030136,2]
[319583532,1710882644133,-500.0,0.00030136,2]
[319583533,1710882644142,-3220.05,0.00030136,2]
[319583534,1710882644483,-2148.75,0.00030136,2]
[319583535,1710882644503,-1413.39,0.00030136,2]
[319583536,1710882644512,-500.0,0.00030136,2]
[319583537,1710882644522,-788.55,0.00030136,2]
[319583538,1710882644531,-1334.56,0.00030136,2]
[319583539,1710882644541,-830.39,0.00030136,2]
[319583540,1710882644550,-500.0,0.00030136,2]
[319583541,1710882644560,-807.56,0.00030136,2]
[319583542,1710882644569,-762.45,0.00030136,2]
[319583543,1710882644579,-1356.69,0.00030136,2]
[319583544,1710882644591,-500.0,0.00030136,2]
[319583545,1710882644600,-500.0,0.00030136,2]
[319583546,1710882644610,-500.0,0.00030136,2]
[319583547,1710882644619,-3140.73,0.00030136,2]
[319583548,1710882644629,-515.53,0.00030136,2]
[319583549,1710882644639,-2086.85,0.00030136,2]
[319583550,1710882644649,-500.0,0.00030136,2]
[319583551,1710882644659,-500.0,0.00030136,2]
[319583552,1710882644669,-376.65514441,0.00030136,2]
[319583553,1710882644678,-500.0,0.00030136,2]
[319583554,1710882644688,-709.16,0.00030136,2]
[319583555,1710882644698,-500.0,0.00030136,2]
[319583556,1710882644707,-500.0,0.00030136,2]
[319583557,1710882644717,-500.0,0.00030136,2]
[319583558,1710882644727,-3499.04,0.00030136,2]
[319583559,1710882644737,-960.21,0.00030136,2]
[319583560,1710882644747,-500.0,0.00030136,2]
[319583561,1710882644757,-500.0,0.00030136,2]
[319583562,1710882644770,-500.0,0.00030136,2]
[319583563,1710882644781,-2207.59,0.00030136,2]
[319583564,1710882644791,-503.05809813,0.00030136,2]
[319583565,1710882644802,-2769.12,0.00030136,2]
[319583566,1710882644814,-4958.78,0.00030136,2]
[319583567,1710882644824,-500.0,0.00030136,2]
[319583568,1710882644838,-500.0,0.00030136,2]
[319583569,1710882644848,-638.69,0.00030136,2]
[319583570,1710882644859,-941.92,0.00030136,2]
[319583571,1710882644869,-564.08,0.00030136,2]
[319583572,1710882644879,-500.0,0.00030136,2]
[319583573,1710882644889,-500.72450471,0.00030136,2]
[319583574,1710882644899,-500.0,0.00030136,2]
[319583575,1710882644909,-788.33,0.00030136,2]
[319583576,1710882644918,-696.94,0.00030136,2]
[319583577,1710882644928,-3368.7,0.00030136,2]
[319583578,1710882644938,-901.85,0.00030136,2]
[319583579,1710882644948,-500.0,0.00030136,2]
[319583580,1710882644958,-500.0,0.00030136,2]
[319583581,1710882644967,-958.09,0.00030136,2]
[319583582,1710882644977,-500.0,0.00030136,2]
[319583583,1710882644987,-500.0,0.00030136,2]
[319583584,1710882644997,-500.0,0.00030136,2]
[319583585,1710882645008,-500.0,0.00030136,2]
[319583586,1710882645019,-500.0,0.00030136,2]
[319583587,1710882645030,-625.81,0.00030136,2]
[319583588,1710882645041,-1004.97,0.00030136,2]
[319583589,1710882645052,-576.88,0.00030136,2]
[319583590,1710882645063,-500.0,0.00030136,2]
[319583591,1710882645075,-556.33,0.00030136,2]
[319583592,1710882645090,-2384.74,0.00030136,2]
[319583593,1710882645101,-820.18,0.00030136,2]
[319583594,1710882645112,-1580.98,0.00030136,2]
[319583595,1710882645123,-500.0,0.00030136,2]
[319583596,1710882645133,-500.0,0.00030136,2]
[319583597,1710882645144,-1371.03,0.00030136,2]
[319583598,1710882645154,-500.0,0.00030136,2]
[319583599,1710882645164,-752.51,0.00030136,2]
[319583600,1710882645174,-500.0,0.00030136,2]
[319583601,1710882645183,-1031.6,0.00030136,2]
[319583602,1710882645193,-1864.55,0.00030136,2]
[319583603,1710882645203,-579.95,0.00030136,2]
[319583604,1710882645213,-150.0,0.00030136,2]
[319583605,1710882645222,-651.57,0.00030136,2]
[319583606,1710882645232,-1176.91,0.00030136,2]
[319583607,1710882645242,-154.112379,0.00030136,7]
[319583608,1710882645253,-500.0,0.00030136,2]
[319583609,1710882645262,-500.0,0.00030136,2]
[319583610,1710882645273,-528.79,0.00030136,2]
[319583611,1710882645283,-503.06694679,0.00030136,2]
[319583612,1710882645292,-309.16858871,0.00030136,2]
[319583613,1710882645302,-2925.46,0.00030136,2]
[319583614,1710882645313,-500.0,0.00030136,2]
[319583615,1710882645322,-500.0,0.00030136,2]
[319583616,1710882645334,-500.0,0.00030136,2]
[319583617,1710882645343,-546.79,0.00030136,2]
[319583618,1710882645353,-500.0,0.00030136,2]
[319583619,1710882645362,-1156.14,0.00030136,2]
[319583620,1710882645372,-1554.04,0.00030136,2]
[319583621,1710882645382,-1276.24,0.00030136,2]
[319583622,1710882645391,-831.76,0.00030136,2]
[319583623,1710882645401,-151.0,0.00030136,7]
[319583624,1710882645411,-151.0,0.00030136,7]
[319583625,1710882645421,-500.0,0.00030136,2]
[319583626,1710882645431,-713.32,0.00030136,2]
[319583627,1710882645440,-501.59951858,0.00030136,2]
[319583628,1710882645450,-1236.63,0.00030136,2]
[319583629,1710882645460,-849.03,0.00030136,2]
[319583630,1710882645469,-500.0,0.00030136,2]
[319583631,1710882645478,-552.45,0.00030136,2]
[319583632,1710882645487,-2545.11,0.00030136,2]
[319583633,1710882645496,-820.96,0.00030136,2]
[319583634,1710882645505,-781.71,0.00030136,2]
[319583635,1710882645515,-1399.45,0.00030136,2]
[319583636,1710882645525,-376.56399,0.00030136,7]
[319583637,1710882645534,-376.56399,0.00030136,7]
[319583638,1710882645544,-531.09,0.00030136,2]
[319583639,1710882645553,-376.56399,0.00030136,7]
[319583640,1710882645563,-376.56399,0.00030136,7]
[319583641,1710882645572,-2606.17,0.00030136,2]
[319583642,1710882645581,-500.0,0.00030136,2]
[319583643,1710882645592,-500.0,0.00030136,2]
[319583644,1710882645601,-500.0,0.00030136,2]
[319583645,1710882645611,-500.0,0.00030136,2]
[319583646,1710882645620,-2214.01,0.00030136,2]
[319583647,1710882645630,-1578.81,0.00030136,2]
[319583648,1710882645639,-500.0,0.00030136,2]
[319583649,1710882645648,-500.0,0.00030136,2]
[319583650,1710882645658,-500.0,0.00030136,2]
[319583651,1710882645667,-769.42,0.00030136,2]
[319583652,1710882645677,-2671.34,0.00030136,2]
[319583653,1710882645686,-500.0,0.00030136,2]
[319583654,1710882645696,-2429.1,0.00030136,2]
[319583655,1710882645706,-1280.46,0.00030136,2]
[319583656,1710882645715,-500.0,0.00030136,2]
[319583657,1710882645725,-151.272897,0.00030136,5]
[319583658,1710882645734,-1601.3,0.00030136,2]
[319583659,1710882645745,-2487.07,0.00030136,2]
[319583660,1710882645755,-913.54,0.00030136,2]
[319583661,1710882645765,-1842.79,0.00030136,2]
[319583662,1710882645778,-500.0,0.00030136,2]
[319583663,1710882645787,-500.0,0.00030136,2]
[319583664,1710882645796,-707.08,0.00030136,2]
[319583665,1710882645806,-2880.16,0.00030136,2]
[319583666,1710882645816,-1054.38,0.00030136,2]
[319583667,1710882645825,-500.0,0.00030136,2]
[319583668,1710882645837,-563.39,0.00030136,2]
[319583669,1710882645847,-9241.35,0.00030136,2]
[319583670,1710882645858,-2908.89,0.00030136,2]
[319583671,1710882645875,-505.83,0.00030136,2]
[319583672,1710882645885,-500.0,0.00030136,2]
[319583673,1710882645895,-594.02,0.00030136,2]
[319583674,1710882645905,-1170.8,0.00030136,2]
[319583675,1710882645915,-1534.6,0.00030136,2]
[319583676,1710882645926,-3017.44,0.00030136,2]
[319583677,1710882645935,-3706.70573768,0.00030136,2]
[319583678,1710882645978,-303.16003,0.00030136,2]
[319583679,1710882645991,-315.0,0.00030136,2]
[319583680,1710882646055,-241.25423232,0.00030136,2]
[319583681,1710882646066,-1945.44,0.00030136,2]
[319583682,1710882646076,-174.14151443,0.00030136,2]
[319583683,1710882646094,-8749.9999995,0.00030136,2]
[319583684,1710882646134,-1707.15206711,0.00030136,2]
[319583697,1710882646763,-5981.79673786,0.00030136,2]
[319583699,1710882646996,-2970.0,0.00030136,2]
[319583700,1710882647007,-3840.23726462,0.00030136,2]
[319583701,1710882647019,-1177.78411893,0.00030136,2]
[319583702,1710882647031,-610.0,0.00030136,2]
[319583703,1710882647042,-25575.18567379,0.00030136,2]
[319583704,1710882647054,-1424.0,0.00030136,2]
[319583705,1710882647066,-627.00315743,0.00030136,2]
[319583706,1710882647078,-323.20929984,0.00030136,2]
[319583707,1710882647095,-3961.19053741,0.00030136,2]
[319583708,1710882647673,-16417.53962908,0.00030136,2]
[319583709,1710882647682,-503.43,0.00030136,2]
[319583710,1710882647692,-500.0,0.00030136,2]
[319583711,1710882647701,-500.0,0.00030136,2]
[319583712,1710882647710,-2806.13,0.00030136,2]
[319583713,1710882647719,-793.13,0.00030136,2]
[319583714,1710882647729,-2415.38,0.00030136,2]
[319583715,1710882647738,-500.0,0.00030136,2]
[319583716,1710882647749,-500.89,0.00030136,2]
[319583717,1710882647763,-1356.77,0.00030136,2]
[319583718,1710882647776,-653.81,0.00030136,2]
[319583719,1710882647786,-500.0,0.00030136,2]
[319583720,1710882647795,-684.61,0.00030136,2]
[319583721,1710882647806,-500.0,0.00030136,2]
[319583722,1710882647816,-500.0,0.00030136,2]
[319583723,1710882647826,-500.0,0.00030136,2]
[319583724,1710882647837,-500.0,0.00030136,2]
[319583725,1710882647848,-153.767688,0.00030136,7]
[319583726,1710882647857,-500.0,0.00030136,2]
[319583727,1710882647867,-623.3,0.00030136,2]
[319583728,1710882647877,-153.767688,0.00030136,7]
[319583729,1710882647887,-500.0,0.00030136,2]
[319583730,1710882647897,-153.767688,0.00030136,7]
[319583731,1710882647907,-500.0,0.00030136,2]
[319583732,1710882647918,-11030.55,0.00030136,2]
[319583733,1710882647928,-1065.0,0.00030136,2]
[319583734,1710882647938,-5602.69,0.00030136,2]
[319583735,1710882647949,-500.0,0.00030136,2]
[319583736,1710882647959,-153.767688,0.00030136,7]
[319583737,1710882647970,-153.767688,0.00030136,7]
[319583738,1710882647980,-153.767688,0.00030136,7]
[319583739,1710882647991,-804.4,0.00030136,2]
[319583740,1710882648001,-646.54,0.00030136,2]
[319583741,1710882648012,-500.0,0.00030136,2]
[319583742,1710882648022,-2598.7,0.00030136,2]
[319583743,1710882648032,-500.0,0.00030136,2]
[319583744,1710882648042,-3287.21,0.00030136,2]
[319583745,1710882648052,-151.0,0.00030136,7]
[319583746,1710882648062,-896.74,0.00030136,2]
[319583747,1710882648072,-11360.02,0.00030136,2]
[319583748,1710882648083,-809.64,0.00030136,2]
[319583749,1710882648094,-151.0,0.00030136,7]
[319583750,1710882648104,-151.0,0.00030136,7]
[319583751,1710882648114,-2102.73,0.00030136,2]
[319583752,1710882648124,-151.0,0.00030136,7]
[319583753,1710882648134,-633.07,0.00030136,2]
[319583754,1710882648143,-4110.33,0.00030136,2]
[319583755,1710882648152,-500.0,0.00030136,2]
[319583756,1710882648161,-500.0,0.00030136,2]
[319583757,1710882648171,-1540.37,0.00030136,2]
[319583758,1710882648180,-7628.35,0.00030136,2]
[319583759,1710882648189,-3110.59,0.00030136,2]
[319583760,1710882648199,-763.21,0.00030136,2]
[319583761,1710882648209,-2276.46,0.00030136,2]
[319583762,1710882648219,-1353.68,0.00030136,2]
[319583763,1710882648230,-724.25,0.00030136,2]
[319583764,1710882648241,-1448.11,0.00030136,2]
[319583765,1710882648251,-2683.74,0.00030136,2]
[319583766,1710882648262,-2280.38,0.00030136,2]
[319583767,1710882648274,-500.0,0.00030136,2]
[319583768,1710882648284,-852.25,0.00030136,2]
[319583769,1710882648294,-8594.39424292,0.00030136,2]
[319583770,1710882648328,-12.40575708,0.00030136,2]
[319583771,1710882648340,-559.07,0.00030136,2]
[319583772,1710882648349,-500.0,0.00030136,2]
[319583773,1710882648360,-500.0,0.00030136,2]
[319583774,1710882648370,-500.0,0.00030136,2]
[319583775,1710882648380,-500.0,0.00030136,2]
[319583776,1710882648390,-545.25,0.00030136,2]
[319583777,1710882648400,-2815.51324133,0.00030136,2]
[319583778,1710882648413,-2484.98675867,0.00030136,2]
[319583779,1710882648423,-500.0,0.00030136,2]
[319583780,1710882648433,-500.0,0.00030136,2]
[319583781,1710882648444,-500.0,0.00030136,2]
[319583782,1710882648454,-151.0,0.00030136,7]
[319583783,1710882648464,-176.413532,0.00030136,7]
[319583784,1710882648475,-500.0,0.00030136,2]
[319583785,1710882648484,-500.0,0.00030136,2]
[319583786,1710882648495,-1669.88,0.00030136,2]
[319583787,1710882648505,-500.0,0.00030136,2]
[319583788,1710882648516,-40349.05,0.00030136,2]
[319583789,1710882648526,-537.89,0.00030136,2]
[319583790,1710882648537,-500.0,0.00030136,2]
[319583791,1710882648548,-500.0,0.00030136,2]
[319583792,1710882648559,-500.0,0.00030136,2]
[319583793,1710882648569,-1147.22,0.00030136,2]
[319583794,1710882648579,-500.0,0.00030136,2]
[319583795,1710882648590,-500.0,0.00030136,2]
[319583796,1710882648600,-14770.35,0.00030136,2]
[319583797,1710882648610,-4346.42,0.00030136,2]
[319583798,1710882648621,-712.61,0.00030136,2]
[319583799,1710882648631,-10255.68,0.00030136,2]
[319583800,1710882648642,-2284.59,0.00030136,2]
[319583801,1710882648653,-511.18,0.00030136,2]
[319583802,1710882648664,-500.0,0.00030136,2]
[319583803,1710882648674,-1080.34,0.00030136,2]
[319583804,1710882648686,-890.66,0.00030136,2]
[319583805,1710882648697,-616.07,0.00030136,2]
[319583806,1710882648707,-2871.82,0.00030136,2]
[319583807,1710882648717,-5119.56,0.00030136,2]
[319583808,1710882648728,-500.0,0.00030136,2]
[319583809,1710882648739,-2184.92,0.00030136,2]
[319583810,1710882648750,-9651.98,0.00030136,2]
[319583811,1710882648765,-500.0,0.00030136,2]
[319583812,1710882648776,-1145.68,0.00030136,2]
[319583813,1710882648785,-6380.69,0.00030136,2]
[319583814,1710882648796,-500.0,0.00030136,2]
[319583815,1710882648807,-4946.82,0.00030136,2]
[319583816,1710882648818,-788.78,0.00030136,2]
[319583817,1710882648828,-500.0,0.00030136,2]
[319583818,1710882648845,-5504.94,0.00030136,2]
[319583819,1710882648856,-500.0,0.00030136,2]
[319583820,1710882648869,-500.0,0.00030136,2]
[319583821,1710882648880,-1024.35,0.00030136,2]
[319583822,1710882648890,-500.0,0.00030136,2]
[319583823,1710882648900,-500.0,0.00030136,2]
[319583824,1710882648910,-500.0,0.00030136,2]
[319583825,1710882648920,-21275.72,0.00030136,2]
[319583826,1710882648931,-7742.5,0.00030136,2]
[319583827,1710882648941,-1627.65,0.00030136,2]
[319583828,1710882648950,-151.0,0.00030136,7]
[319583829,1710882648960,-288.91190979,0.00030136,2]
[319583830,1710882648970,-151.0,0.00030136,7]
[319583831,1710882648979,-151.0,0.00030136,7]
[319583832,1710882648989,-1506.87,0.00030136,2]
[319583833,1710882648998,-500.0,0.00030136,2]
[319583834,1710882649008,-3757.98,0.00030136,2]
[319583835,1710882649017,-500.0,0.00030136,2]
[319583836,1710882649026,-1246.24,0.00030136,2]
[319583837,1710882649036,-500.0,0.00030136,2]
[319583838,1710882649045,-151.0,0.00030136,7]
[319583839,1710882649054,-151.0,0.00030136,7]
[319583840,1710882649063,-262.356181,0.00030136,7]
[319583841,1710882649072,-676.26,0.00030136,2]
[319583842,1710882649087,-12674.53,0.00030136,2]
[319583843,1710882649096,-500.0,0.00030136,2]
[319583844,1710882649105,-509.36,0.00030136,2]
[319583845,1710882649115,-5384.94,0.00030136,2]
[319583846,1710882649124,-500.0,0.00030136,2]
[319583847,1710882649133,-500.0,0.00030136,2]
[319583848,1710882649143,-500.0,0.00030136,2]
[319583849,1710882649152,-500.0,0.00030136,2]
[319583850,1710882649162,-500.0,0.00030136,2]
[319583851,1710882649171,-516.79,0.00030136,2]
[319583852,1710882649181,-2324.8,0.00030136,2]
[319583853,1710882649191,-899.62,0.00030136,2]
[319583854,1710882649201,-500.0,0.00030136,2]
[319583855,1710882649210,-1366.23,0.00030136,2]
[319583856,1710882649219,-868.72,0.00030136,2]
[319583857,1710882649228,-500.0,0.00030136,2]
[319583858,1710882649237,-500.0,0.00030136,2]
[319583859,1710882649246,-22939.88,0.00030136,2]
[319583860,1710882649255,-1421.43,0.00030136,2]
[319583861,1710882649264,-4209.18,0.00030136,2]
[319583862,1710882649274,-9735.53,0.00030136,2]
[319583863,1710882649283,-151.0,0.00030136,7]
[319583864,1710882649292,-151.0,0.00030136,7]
[319583865,1710882649303,-151.0,0.00030136,7]
[319583866,1710882649311,-5049.96,0.00030136,2]
[319583867,1710882649321,-4413.03,0.00030136,2]
[319583868,1710882649330,-500.0,0.00030136,2]
[319583869,1710882649342,-4229.91,0.00030136,2]
[319583870,1710882649351,-828.78,0.00030136,2]
[319583871,1710882649360,-151.0,0.00030136,7]
[319583872,1710882649370,-151.0,0.00030136,7]
[319583873,1710882649379,-151.0,0.00030136,7]
[319583874,1710882649388,-753.29,0.00030136,2]
[319583875,1710882649398,-500.0,0.00030136,2]
[319583876,1710882649407,-7546.51,0.00030136,2]
[319583877,1710882649416,-500.0,0.00030136,2]
[319583878,1710882649425,-500.0,0.00030136,2]
[319583879,1710882649434,-3306.35,0.00030136,2]
[319583880,1710882649444,-500.0,0.00030136,2]
[319583881,1710882649453,-4834.54,0.00030136,2]
[319583882,1710882649463,-748.39,0.00030136,2]
[319583883,1710882649472,-825.15,0.00030136,2]
[319583884,1710882649481,-10015.97,0.00030136,2]
[319583885,1710882649490,-8700.83,0.00030136,2]
[319583886,1710882649499,-1485.2,0.00030136,2]
[319583887,1710882649509,-500.0,0.00030136,2]
[319583888,1710882649518,-500.0,0.00030136,2]
[319583889,1710882649528,-11614.08,0.00030136,2]
[319583890,1710882649538,-500.0,0.00030136,2]
[319583891,1710882649547,-1260.09,0.00030136,2]
[319583892,1710882649557,-4567.34,0.00030136,2]
[319583893,1710882649566,-9363.49,0.00030136,2]
[319583894,1710882649575,-500.0,0.00030136,2]
[319583895,1710882649586,-4443.41,0.00030136,2]
[319583896,1710882649595,-500.0,0.00030136,2]
[319583897,1710882649604,-581.93611556,0.00030136,2]
[319583898,1710882649613,-4471.73,0.00030136,2]
[319583899,1710882649622,-5751.35,0.00030136,2]
[319583900,1710882649631,-500.0,0.00030136,2]
[319583901,1710882649640,-880.6,0.00030136,2]
[319583902,1710882649649,-5582.98,0.00030136,2]
[319583903,1710882649658,-500.0,0.00030136,2]
[319583904,1710882649668,-500.0,0.00030136,2]
[319583905,1710882649677,-151.0,0.00030136,7]
[319583906,1710882649686,-151.0,0.00030136,7]
[319583907,1710882649695,-181.68295,0.00030136,7]
[319583908,1710882649705,-593.86,0.00030136,2]
[319583909,1710882649714,-151.0,0.00030136,7]
[319583910,1710882649724,-4197.99,0.00030136,2]
[319583911,1710882649733,-151.0,0.00030136,7]
[319583912,1710882649743,-151.0,0.00030136,7]
[319583913,1710882649752,-2200.83,0.00030136,2]
[319583914,1710882649771,-3057.67,0.00030136,2]
[319583915,1710882649781,-930.88,0.00030136,2]
[319583916,1710882649792,-2236.83,0.00030136,2]
[319583917,1710882649801,-500.0,0.00030136,2]
[319583918,1710882649810,-151.0,0.00030136,7]
[319583919,1710882649819,-151.0,0.00030136,7]
[319583920,1710882649829,-151.0,0.00030136,7]
[319583921,1710882649842,-8380.76,0.00030136,2]
[319583922,1710882649854,-3610.3,0.00030136,2]
[319583923,1710882649864,-10937.88,0.00030136,2]
[319583924,1710882649874,-500.0,0.00030136,2]
[319583925,1710882649882,-7631.77,0.00030136,2]
[319583926,1710882649892,-3511.34,0.00030136,2]
[319583927,1710882649901,-500.0,0.00030136,2]
[319583928,1710882649911,-7148.53,0.00030136,2]
[319583929,1710882649920,-695.08,0.00030136,2]
[319583930,1710882649929,-11786.22,0.00030136,2]
[319583931,1710882649938,-500.0,0.00030136,2]
[319583932,1710882649948,-500.0,0.00030136,2]
[319583933,1710882649956,-1791.15,0.00030136,2]
[319583934,1710882649966,-151.0,0.00030136,7]
[319583935,1710882649975,-500.0,0.00030136,2]
[319583936,1710882649984,-151.0,0.00030136,7]
[319583937,1710882649993,-151.0,0.00030136,7]